fUST/lending_fUST_20250425
["ID","MTS","AMOUNT","RATE_DAILY","PERIOD"]
[358910710,1745544643646,-500.0,0.00016712,2]
[358910711,1745544643655,-500.0,0.00016712,2]
[358910712,1745544643664,-877.28,0.00016712,2]
[358910713,1745544643674,-500.0,0.00016712,2]
[358910714,1745544643686,-500.0,0.00016712,2]
[358910715,1745544643695,-2118.29,0.00016712,2]
[358910716,1745544643705,-1044.49,0.00016712,2]
[358910717,1745544643715,-2489.55,0.00016712,2]
[358910718,1745544643725,-500.0,0.00016712,2]
[358910719,1745544643735,-804.12,0.00016712,2]
[358910720,1745544643745,-1072.57,0.00016712,2]
[358910721,1745544643755,-500.0,0.00016712,2]
[358910722,1745544643764,-3002.5,0.00016712,2]
[358910723,1745544643774,-500.0,0.00016712,2]
[358910724,1745544643783,-500.0,0.00016712,2]
[358910725,1745544643793,-500.0,0.00016712,2]
[358910726,1745544643802,-500.0,0.00016712,2]
[358910727,1745544643812,-500.0,0.00016712,2]
[358910728,1745544643821,-500.0,0.00016712,2]
[358910729,1745544643830,-500.0,0.00016712,2]
[358910730,1745544643840,-500.0,0.00016712,2]
[358910731,1745544643849,-500.0,0.00016712,2]
[358910732,1745544643858,-528.17,0.00016712,2]
[358910733,1745544643868,-500.0,0.00016712,2]
[358910734,1745544643877,-769.58,0.00016712,2]
[358910735,1745544643887,-2844.96,0.00016712,2]
[358910736,1745544643896,-500.0,0.00016712,2]
[358910737,1745544643905,-500.0,0.00016712,2]
[358910738,1745544643916,-500.0,0.00016712,2]
[358910739,1745544643927,-526.51,0.00016712,2]
[358910740,1745544643937,-500.0,0.00016712,2]
[358910742,1745544643946,-500.0,0.00016712,2]
[358910743,1745544643956,-500.0,0.00016712,2]
[358910744,1745544643967,-1020.0,0.00016712,2]
[358910745,1745544643977,-500.0,0.00016712,2]
[358910746,1745544643986,-500.0,0.00016712,2]
[358910747,1745544643997,-500.0,0.00016712,2]
[358910748,1745544644006,-500.0,0.00016712,2]
[358910749,1745544644016,-500.0,0.00016712,2]
[358910750,1745544644026,-500.0,0.00016712,2]
[358910751,1745544644037,-500.0,0.00016712,2]
[358910752,1745544644047,-500.0,0.00016712,2]
[358910753,1745544644057,-500.0,0.00016712,2]
[358910754,1745544644066,-956.45,0.00016712,2]
[358910755,1745544644076,-1067.57,0.00016712,2]
[358910756,1745544644087,-791.15,0.00016712,2]
[358910757,1745544644098,-500.0,0.00016712,2]
[358910758,1745544644108,-661.38,0.00016712,2]
[358910759,1745544644124,-745.64,0.00016712,2]
[358910760,1745544644134,-500.0,0.00016712,2]
[358910761,1745544644144,-500.0,0.00016712,2]
[358910762,1745544644156,-500.0,0.00016712,2]
[358910763,1745544644166,-500.0,0.00016712,2]
[358910764,1745544644175,-500.0,0.00016712,2]
[358910765,1745544644185,-3213.75,0.00016712,2]
[358910766,1745544644194,-500.0,0.00016712,2]
[358910767,1745544644204,-500.0,0.00016712,2]
[358910768,1745544644216,-500.0,0.00016712,2]
[358910769,1745544644226,-500.0,0.00016712,2]
[358910770,1745544644236,-1000.0,0.00016884,2]
[358910771,1745544644245,-511.98,0.00016986,2]
[358910772,1745544644255,-500.0,0.00016986,2]
[358910773,1745544644267,-500.0,0.00016986,2]
[358910774,1745544644278,-500.0,0.00016986,2]
[358910775,1745544644287,-478.05037518,0.00016986,2]
[358910776,1745544644305,-21.94962482,0.00016986,2]
[358910777,1745544644315,-500.0,0.00016986,2]
[358910778,1745544644324,-166.486,0.00016986,2]
[358910779,1745544644334,-159.48723686,0.00016986,2]
[358910780,1745544644345,-340.51276314,0.00016986,2]
[358910781,1745544644355,-304.44177057,0.00016986,2]
[358910790,1745544646000,-223.64397023,0.00016438,2]
[358910791,1745544646010,-31.48802982,0.00016438,2]
[358910792,1745544646022,-468.51197018,0.00016438,2]
[358910793,1745544646032,-195.55822943,0.00016986,2]
[358910794,1745544646043,-500.0,0.00016986,2]
[358910795,1745544646052,-500.0,0.00016986,2]
[358910796,1745544646062,-500.0,0.00016986,2]
[358910797,1745544646072,-500.0,0.00016986,2]
[358910798,1745544646082,-500.0,0.00016986,2]
[358910799,1745544646093,-500.0,0.00016986,2]
[358910800,1745544646102,-500.0,0.00016986,2]
[358910801,1745544646113,-500.0,0.00016986,2]
[358910802,1745544646123,-500.0,0.00016986,2]
[358910803,1745544646132,-500.0,0.00016986,2]
[358910804,1745544646142,-500.0,0.00016986,2]
[358910805,1745544646151,-500.0,0.00016986,2]
[358910806,1745544646161,-500.0,0.00016986,2]
[358910807,1745544646170,-762.03,0.00016986,2]
[358910808,1745544646180,-500.0,0.00016986,2]
[358910809,1745544646189,-520.0,0.00016986,2]
[358910813,1745544646363,-500.0,0.00016986,2]
[358910814,1745544646375,-500.0,0.00016986,2]
[358910815,1745544646385,-1128.39,0.00016986,2]
[358910816,1745544646395,-500.0,0.00016986,2]
[358910817,1745544646404,-500.0,0.00016986,2]
[358910818,1745544646414,-877.28,0.00016986,2]
[358910819,1745544646424,-500.0,0.00016986,2]
[358910820,1745544646434,-184.85476779,0.00016986,2]
[358910821,1745544646445,-1044.49,0.00016986,2]
[358910823,1745544646455,-2118.29,0.00016986,2]
[358910824,1745544646466,-500.0,0.00016986,2]
[358910825,1745544646476,-804.12,0.00016986,2]
[358910826,1745544646485,-1072.57,0.00016986,2]
[358910827,1745544646495,-500.0,0.00016986,2]
[358910828,1745544646505,-3002.5,0.00016986,2]
[358910829,1745544646515,-500.0,0.00016986,2]
[358910830,1745544646524,-500.0,0.00016986,2]
[358910831,1745544646534,-500.0,0.00016986,2]
[358910832,1745544646544,-500.0,0.00016986,2]
[358910833,1745544646555,-500.0,0.00016986,2]
[358910834,1745544646565,-500.0,0.00016986,2]
[358910835,1745544646575,-500.0,0.00016986,2]
[358910836,1745544646584,-500.0,0.00016986,2]
[358910837,1745544646594,-500.0,0.00016986,2]
[358910838,1745544646604,-528.17,0.00016986,2]
[358910839,1745544646613,-305.21691559,0.00016986,2]
[358910840,1745544646626,-194.78308441,0.00016986,2]
[358910841,1745544646635,-769.58,0.00016986,2]
[358910842,1745544646645,-2844.96,0.00016986,2]
[358910843,1745544646654,-500.0,0.00016986,2]
[358910844,1745544646664,-323.22620304,0.00016986,2]
[358910845,1745544646673,-500.0,0.00016986,2]
[358910846,1745544646683,-526.51,0.00016986,2]
[358910847,1745544646693,-500.0,0.00016986,2]
[358910848,1745544646702,-500.0,0.00016986,2]
[358910849,1745544646713,-500.0,0.00016986,2]
[358910850,1745544646724,-1020.0,0.00016986,2]
[358910851,1745544646733,-301.80133073,0.00016986,2]
[358910852,1745544646746,-198.19866927,0.00016986,2]
[358910853,1745544646757,-500.0,0.00016986,2]
[358910854,1745544646767,-500.0,0.00016986,2]
[358910855,1745544646776,-500.0,0.00016986,2]
[358910856,1745544646786,-500.0,0.00016986,2]
[358910857,1745544646795,-500.0,0.00016986,2]
[358910858,1745544646804,-500.0,0.00016986,2]
[358910859,1745544646813,-500.0,0.00016986,2]
[358910860,1745544646825,-500.0,0.00016986,2]
[358910861,1745544646834,-956.45,0.00016986,2]
[358910862,1745544646844,-1067.57,0.00016986,2]
[358910863,1745544646853,-791.15,0.00016986,2]
[358910864,1745544646863,-500.0,0.00016986,2]
[358910865,1745544646873,-661.38,0.00016986,2]
[358910866,1745544646883,-745.64,0.00016986,2]
[358910867,1745544646892,-500.0,0.00016986,2]
[358910868,1745544646901,-500.0,0.00016986,2]
[358910869,1745544646911,-500.0,0.00016986,2]
[358910870,1745544646920,-500.0,0.00016986,2]
[358910871,1745544646931,-500.0,0.00016986,2]
[358910872,1745544646942,-3213.75,0.00016986,2]
[358910873,1745544646953,-115.86133023,0.00016986,2]
[358910874,1745544646995,-384.13866977,0.00016986,2]
[358910875,1745544647004,-500.0,0.00016986,2]
[358910876,1745544647014,-597.30044858,0.00016986,2]
[358910877,1745544647024,-500.0,0.00016986,2]
[358910878,1745544647034,-511.98,0.0001726,2]
[358910879,1745544647044,-500.0,0.0001726,2]
[358910880,1745544647053,-500.0,0.0001726,2]
[358910881,1745544647063,-500.0,0.0001726,2]
[358910882,1745544647072,-500.0,0.0001726,2]
[358910883,1745544647083,-500.0,0.0001726,2]
[358910884,1745544647093,-500.0,0.0001726,2]
[358910885,1745544647103,-500.0,0.0001726,2]
[358910886,1745544647113,-500.0,0.0001726,2]
[358910887,1745544647122,-500.0,0.0001726,2]
[358910888,1745544647131,-500.0,0.0001726,2]
[358910889,1745544647141,-500.0,0.0001726,2]
[358910890,1745544647150,-500.0,0.0001726,2]
[358910891,1745544647160,-500.0,0.0001726,2]
[358910892,1745544647169,-500.0,0.0001726,2]
[358910893,1745544647179,-500.0,0.0001726,2]
[358910894,1745544647189,-500.0,0.0001726,2]
[358910895,1745544647198,-500.0,0.0001726,2]
[358910896,1745544647208,-500.0,0.0001726,2]
[358910897,1745544647220,-500.0,0.0001726,2]
[358910898,1745544647230,-500.0,0.0001726,2]
[358910899,1745544647239,-762.03,0.0001726,2]
[358910900,1745544647250,-259.49548525,0.0001726,2]
[358910901,1745544647259,-520.0,0.0001726,2]
[358910902,1745544647269,-500.0,0.0001726,2]
[358910903,1745544647278,-500.0,0.0001726,2]
[358910904,1745544647288,-1128.39,0.0001726,2]
[358910905,1745544647297,-500.0,0.0001726,2]
[358910906,1745544647306,-244.26380278,0.0001726,2]
[358910907,1745544647316,-877.28,0.0001726,2]
[358910908,1745544647325,-500.0,0.0001726,2]
[358910909,1745544647334,-1044.49,0.0001726,2]
[358910910,1745544647344,-2118.29,0.0001726,2]
[358910911,1745544647353,-500.0,0.0001726,2]
[358910912,1745544647364,-1072.57,0.0001726,2]
[358910913,1745544647374,-804.12,0.0001726,2]
[358910914,1745544647384,-500.0,0.0001726,2]
[358910915,1745544647393,-3002.5,0.0001726,2]
[358910916,1745544647403,-500.0,0.0001726,2]
[358910917,1745544647412,-500.0,0.0001726,2]
[358910918,1745544647423,-500.0,0.0001726,2]
[358910919,1745544647434,-500.0,0.0001726,2]
[358910920,1745544647444,-500.0,0.0001726,2]
[358910921,1745544647454,-500.0,0.0001726,2]
[358910922,1745544647465,-500.0,0.0001726,2]
[358910923,1745544647474,-500.0,0.0001726,2]
[358910924,1745544647485,-500.0,0.0001726,2]
[358910925,1745544647495,-528.17,0.0001726,2]
[358910926,1745544647504,-500.0,0.0001726,2]
[358910927,1745544647513,-769.58,0.0001726,2]
[358910928,1745544647523,-2844.96,0.0001726,2]
[358910929,1745544647532,-500.0,0.0001726,2]
[358910930,1745544647542,-500.0,0.0001726,2]
[358910931,1745544647551,-526.51,0.0001726,2]
[358910932,1745544647561,-500.0,0.0001726,2]
[358910933,1745544647570,-500.0,0.0001726,2]
[358910934,1745544647580,-500.0,0.0001726,2]
[358910935,1745544647589,-1020.0,0.0001726,2]
[358910936,1745544647599,-500.0,0.0001726,2]
[358910937,1745544647608,-555.67110719,0.0001726,2]
[358910938,1745544647618,-500.0,0.0001726,2]
[358910939,1745544647627,-500.0,0.0001726,2]
[358910940,1745544647637,-500.0,0.0001726,2]
[358910941,1745544647646,-500.0,0.0001726,2]
[358910942,1745544647657,-500.0,0.0001726,2]
[358910943,1745544647666,-500.0,0.0001726,2]
[358910944,1745544647676,-500.0,0.0001726,2]
[358910945,1745544647690,-956.45,0.0001726,2]
[358910946,1745544647699,-1067.57,0.0001726,2]
[358910947,1745544647708,-791.15,0.0001726,2]
[358910948,1745544647718,-500.0,0.0001726,2]
[358910949,1745544647727,-661.38,0.0001726,2]
[358910950,1745544647737,-745.64,0.0001726,2]
[358910951,1745544647746,-500.0,0.0001726,2]
[358910952,1745544647755,-500.0,0.0001726,2]
[358910953,1745544647767,-500.0,0.0001726,2]
[358910954,1745544647776,-500.0,0.0001726,2]
[358910955,1745544647786,-500.0,0.0001726,2]
[358910956,1745544647795,-3213.75,0.0001726,2]
[358910957,1745544647805,-500.0,0.0001726,2]
[358910958,1745544647815,-500.0,0.0001726,2]
[358910959,1745544647824,-500.0,0.0001726,2]
[358910960,1745544647833,-79.26465428,0.00017295,2]
[358910961,1745544647846,-1420.73534572,0.00017295,2]
[358910962,1745544647857,-545.0,0.00017343,2]
[358910963,1745544647865,-706.0,0.00017343,2]
[358910964,1745544647875,-2260.184,0.00017343,2]
[358910965,1745544647884,-420.0,0.0001749,2]
[358910966,1745544647893,-3118.65051926,0.000175,4]
[358910967,1745544647902,-511.98,0.00017534,2]
[358910968,1745544647911,-500.0,0.00017534,2]
[358910969,1745544647921,-500.0,0.00017534,2]
[358910970,1745544647931,-500.0,0.00017534,2]
[358910971,1745544647940,-500.0,0.00017534,2]
[358910972,1745544647949,-500.0,0.00017534,2]
[358910973,1745544647958,-500.0,0.00017534,2]
[358910974,1745544647973,-500.0,0.00017534,2]
[358910975,1745544647982,-500.0,0.00017534,2]
[358910976,1745544647991,-500.0,0.00017534,2]
[358910977,1745544648000,-500.0,0.00017534,2]
[358910978,1745544648010,-500.0,0.00017534,2]
[358910979,1745544648020,-500.0,0.00017534,2]
[358910980,1745544648030,-500.0,0.00017534,2]
[358910981,1745544648039,-500.0,0.00017534,2]
[358910982,1745544648049,-500.0,0.00017534,2]
[358910983,1745544648059,-500.0,0.00017534,2]
[358910984,1745544648068,-500.0,0.00017534,2]
[358910985,1745544648078,-500.0,0.00017534,2]
[358910986,1745544648088,-500.0,0.00017534,2]
[358910987,1745544648097,-500.0,0.00017534,2]
[358910988,1745544648107,-762.03,0.00017534,2]
[358910989,1745544648116,-520.0,0.00017534,2]
[358910990,1745544648125,-500.0,0.00017534,2]
[358910991,1745544648134,-500.0,0.00017534,2]
[358910992,1745544648146,-1128.39,0.00017534,2]
[358910993,1745544648155,-500.0,0.00017534,2]
[358910994,1745544648164,-877.28,0.00017534,2]
[358910995,1745544648174,-500.0,0.00017534,2]
[358910996,1745544648183,-1044.49,0.00017534,2]
[358910997,1745544648193,-2118.29,0.00017534,2]
[358910998,1745544648203,-500.0,0.00017534,2]
[358910999,1745544648212,-1072.57,0.00017534,2]
[358911000,1745544648226,-804.12,0.00017534,2]
[358911001,1745544648235,-500.0,0.00017534,2]
[358911002,1745544648244,-3002.5,0.00017534,2]
[358911003,1745544648254,-480.68,0.00017534,2]
[358911004,1745544648264,-489.65513063,0.00017534,2]
[358911005,1745544648273,-500.0,0.00017534,2]
[358911006,1745544648282,-500.0,0.00017534,2]
[358911007,1745544648292,-500.0,0.00017534,2]
[358911008,1745544648301,-500.0,0.00017534,2]
[358911009,1745544648311,-500.0,0.00017534,2]
[358911010,1745544648320,-500.0,0.00017534,2]
[358911011,1745544648330,-500.0,0.00017534,2]
[358911012,1745544648339,-528.17,0.00017534,2]
[358911013,1745544648349,-500.0,0.00017534,2]
[358911014,1745544648358,-769.58,0.00017534,2]
[358911015,1745544648367,-2844.96,0.00017534,2]
[358911016,1745544648377,-500.0,0.00017534,2]
[358911017,1745544648387,-500.0,0.00017534,2]
[358911018,1745544648396,-526.51,0.00017534,2]
[358911019,1745544648407,-500.0,0.00017534,2]
[358911020,1745544648417,-414.77639646,0.00017534,2]
[358911021,1745544648427,-500.0,0.00017534,2]
[358911022,1745544648438,-1020.0,0.00017534,2]
[358911023,1745544648447,-598.85361769,0.00017534,2]
[358911024,1745544648457,-500.0,0.00017534,2]
[358911025,1745544648468,-500.0,0.00017534,2]
[358911026,1745544648478,-500.0,0.00017534,2]
[358911027,1745544648488,-500.0,0.00017534,2]
[358911028,1745544648497,-500.0,0.00017534,2]
[358911029,1745544648507,-500.0,0.00017534,2]
[358911030,1745544648516,-500.0,0.00017534,2]
[358911031,1745544648527,-956.45,0.00017534,2]
[358911032,1745544648537,-1067.57,0.00017534,2]
[358911033,1745544648548,-210.30331764,0.00017534,2]
[358911036,1745544758279,-111.04608094,0.00025004,120]
[358911037,1745544758314,-169.56,0.000266,31]
[358911038,1745544758344,-169.56,0.000266,31]
[358911039,1745544758371,-169.56,0.000266,31]
[358911040,1745544758405,-169.56,0.000266,31]
[358911041,1745544758444,-169.56,0.000266,31]
[358911042,1745544758480,-169.56,0.000266,31]
[358911043,1745544758516,-169.56,0.000266,31]
[358911044,1745544758553,-169.56,0.000266,31]
[358911045,1745544758591,-169.56,0.000266,31]
[358911046,1745544758631,-169.56,0.000266,31]
[358911047,1745544758669,-169.56,0.000266,31]
[358911048,1745544758705,-169.56,0.000266,31]
[358911049,1745544758744,-500.0,0.00027397,120]
[358911050,1745544758774,-505.21892315,0.00027397,120]
[358911051,1745544758803,-500.0,0.00027397,120]
[358911052,1745544758838,-500.0,0.00027397,120]
[358911053,1745544758871,-500.0,0.00027397,120]
[358911054,1745544758905,-500.0,0.00027397,120]
[358911055,1745544758939,-400.0,0.00027397,60]
[358911056,1745544758968,-175.8143347,0.00027397,120]
[358911057,1745544758998,-442.0,0.00028,120]
[358911058,1745544759039,-169.56,0.000287,31]
[358911059,1745544759075,-169.56,0.000287,31]
[358911060,1745544759110,-169.56,0.000287,31]
[358911061,1745544759146,-169.56,0.000287,31]
[358911062,1745544759181,-169.56,0.000287,31]
[358911063,1745544759212,-169.56,0.000287,31]
[358911064,1745544759244,-169.56,0.000287,31]
[358911065,1745544759277,-169.56,0.000287,31]
[358911066,1745544759309,-169.56,0.000287,31]
[358911067,1745544759343,-169.56,0.000287,31]
[358911068,1745544759375,-169.56,0.000287,31]
[358911069,1745544759407,-169.56,0.000287,31]
[358911070,1745544759444,-169.56,0.000287,31]
[358911071,1745544759479,-169.56,0.000287,31]
[358911072,1745544759514,-169.56,0.000287,31]
[358911073,1745544759548,-169.56,0.000287,31]
[358911074,1745544759583,-169.56,0.000287,31]
[358911075,1745544759616,-169.56,0.000287,31]
[358911076,1745544759649,-169.56,0.000287,31]
[358911077,1745544759681,-169.56,0.000287,31]
[358911078,1745544759711,-169.56,0.000287,31]
[358911079,1745544759744,-169.56,0.000287,31]
[358911080,1745544759775,-169.56,0.000287,31]
[358911081,1745544759807,-169.56,0.000287,31]
[358911082,1745544759839,-300.0,0.0003,120]
[358911083,1745544759870,-1000.0,0.0003,120]
[358911084,1745544759898,-750172.35890333,0.0003,120]
[358911085,1745544759926,-503.60654239,0.0003,30]
[358911086,1745544759954,-172.25036441,0.0003,30]
[358911087,1745544759983,-200.0,0.0003,32]
[358911088,1745544760011,-251.299999,0.0003,32]
[358911089,1745544760038,-2000.0,0.0003,30]
[358911090,1745544760062,-55407.30996207,0.0003,30]
[358911091,1745544760085,-1300.0,0.0003,30]
[358911092,1745544760109,-840.0731918,0.0003,30]
[358911093,1745544760132,-160.0,0.0003,30]
[358911094,1745544760155,-313.04259526,0.0003,30]
[358911095,1745544760178,-313.04259526,0.0003,120]
[358911096,1745544760201,-160.0,0.0003,30]
[358911097,1745544760225,-158.96429351,0.00030068,120]
[358911098,1745544760247,-171.83519275,0.00030068,120]
[358911099,1745544760270,-400.0,0.00030137,60]
[358911100,1745544760609,-169.56,0.000307,31]
[358911101,1745544760640,-169.56,0.000307,31]
[358911102,1745544760673,-169.56,0.000307,31]
[358911103,1745544760702,-169.56,0.000307,31]
[358911104,1745544760730,-169.56,0.000307,31]
[358911105,1745544760761,-169.56,0.000307,31]
[358911106,1745544760789,-169.56,0.000307,31]
[358911107,1745544760817,-169.56,0.000307,31]
[358911108,1745544760844,-169.56,0.000307,31]
[358911109,1745544760870,-169.56,0.000307,31]
[358911110,1745544760896,-169.56,0.000307,31]
[358911111,1745544760922,-169.56,0.000307,31]
[358911112,1745544760950,-169.56,0.000307,31]
[358911113,1745544760976,-169.56,0.000307,31]
[358911114,1745544761004,-169.56,0.000307,31]
[358911115,1745544761031,-169.56,0.000307,31]
[358911116,1745544761059,-169.56,0.000307,31]
[358911117,1745544761089,-169.56,0.000307,31]
[358911118,1745544761120,-169.56,0.000307,31]
[358911119,1745544761147,-169.56,0.000307,31]
[358911120,1745544761175,-169.56,0.000307,31]
[358911121,1745544761203,-169.56,0.000307,31]
[358911122,1745544761230,-169.56,0.000307,31]
[358911123,1745544761258,-169.56,0.000307,31]
[358911124,1745544761283,-200.0,0.00031,34]
[358911125,1745544761311,-160.0,0.00031,120]
[358911126,1745544761337,-12271.75088624,0.00031389,30]
[358911127,1745544761361,-200.0,0.0003168,30]
[358911128,1745544761393,-1333.0,0.00031945,120]
[358911129,1745544761430,-2000.0,0.00032,30]
[358911130,1745544761456,-300.0,0.00032,120]
[358911131,1745544761481,-1000.0,0.00032,120]
[358911132,1745544761507,-200.0,0.00032,37]
[358911133,1745544761532,-1467.59266088,0.000327,30]
[358911134,1745544761563,-169.56,0.000328,31]
[358911135,1745544761597,-169.56,0.000328,31]
[358911136,1745544761628,-169.56,0.000328,31]
[358911137,1745544761658,-169.56,0.000328,31]
[358911138,1745544761688,-169.56,0.000328,31]
[358911139,1745544761717,-169.56,0.000328,31]
[358911140,1745544761748,-169.56,0.000328,31]
[358911141,1745544761778,-169.56,0.000328,31]
[358911142,1745544761808,-169.56,0.000328,31]
[358911143,1745544761835,-169.56,0.000328,31]
[358911144,1745544761863,-169.56,0.000328,31]
[358911145,1745544761890,-169.56,0.000328,31]
[358911146,1745544761918,-169.56,0.000328,31]
[358911147,1745544761948,-169.56,0.000328,31]
[358911148,1745544761976,-169.56,0.000328,31]
[358911149,1745544762003,-169.56,0.000328,31]
[358911150,1745544762030,-169.56,0.000328,31]
[358911151,1745544762057,-169.56,0.000328,31]
[358911152,1745544762084,-169.56,0.000328,31]
[358911153,1745544762114,-169.56,0.000328,31]
[358911154,1745544762143,-169.56,0.000328,31]
[358911155,1745544762170,-169.56,0.000328,31]
[358911156,1745544762199,-169.56,0.000328,31]
[358911157,1745544762226,-169.56,0.000328,31]
[358911158,1745544762249,-500.0,0.00032876,120]
[358911159,1745544762273,-500.0,0.00032876,120]
[358911160,1745544762297,-500.0,0.00032876,120]
[358911161,1745544762323,-556.43074727,0.00032876,120]
[358911162,1745544762346,-300.0,0.00032876,30]
[358911163,1745544762371,-300.0,0.00032876,30]
[358911164,1745544762394,-300.0,0.00032876,30]
[358911165,1745544762419,-300.0,0.00032876,30]
[358911166,1745544762443,-300.0,0.00032876,30]
[358911167,1745544762467,-300.0,0.00032876,30]
[358911168,1745544762491,-300.0,0.00032876,30]
[358911169,1745544762515,-300.0,0.00032876,30]
[358911170,1745544762538,-300.0,0.00032876,30]
[358911171,1745544762561,-300.0,0.00032876,30]
[358911172,1745544762585,-435.2253675,0.00032876,30]
[358911173,1745544762611,-615.00280017,0.00032877,60]
[358911174,1745544762647,-205.6151266,0.00032877,120]
[358911175,1745544762675,-2572.12,0.000329,30]
[358911176,1745544762702,-105858.54,0.000329,30]
[358911177,1745544762727,-3000.961942,0.000329,90]
[358911178,1745544762753,-1004.42,0.00033,120]
[358911179,1745544762779,-840.0731918,0.00033,30]
[358911180,1745544762804,-200.0,0.00033,40]
[358911181,1745544762833,-361.0,0.0003362,36]
[358911182,1745544762858,-600.0,0.00033768,60]
[358911183,1745544762882,-2572.12,0.00034,30]
[358911184,1745544762908,-300.0,0.00034,120]
[358911185,1745544763081,-1000.0,0.00034,120]
[358911186,1745544763106,-518.79361192,0.00034,30]
[358911187,1745544763131,-200.0,0.00034,43]
[358911188,1745544763156,-105858.54,0.000341,30]
[358911189,1745544763181,-123551.1256889,0.000348,120]
[358911190,1745544763214,-169.56,0.000348,31]
[358911191,1745544763243,-169.56,0.000348,31]
[358911192,1745544763276,-169.56,0.000348,31]
[358911193,1745544763305,-169.56,0.000348,31]
[358911194,1745544763337,-169.56,0.000348,31]
[358911195,1745544763368,-169.56,0.000348,31]
[358911196,1745544763397,-169.56,0.000348,31]
[358911197,1745544763426,-169.56,0.000348,31]
[358911198,1745544763456,-169.56,0.000348,31]
[358911199,1745544763485,-169.56,0.000348,31]
[358911200,1745544763515,-169.56,0.000348,31]
[358911201,1745544763546,-169.56,0.000348,31]
[358911202,1745544763578,-169.56,0.000348,31]
[358911203,1745544763608,-169.56,0.000348,31]
[358911204,1745544763637,-169.56,0.000348,31]
[358911205,1745544763667,-169.56,0.000348,31]
[358911206,1745544763692,-600.0,0.00034864,60]
[358911207,1745544763718,-761.46378334,0.00035,120]
[358911208,1745544763745,-397.86,0.00035,60]
[358911209,1745544763769,-5000.0,0.00035,120]
[358911210,1745544763798,-251.3,0.00035,46]
[358911211,1745544763826,-2000.0,0.00035,120]
[358911212,1745544763851,-2572.12,0.000355,30]
[358911213,1745544763876,-105858.54,0.000358,30]
[358911214,1745544763903,-600.0,0.0003596,60]
[358911215,1745544763926,-1107.92829625,0.00036,30]
[358911216,1745544763950,-300.0,0.00036,120]
[358911217,1745544763974,-1000.0,0.00036,120]
[358911218,1745544764001,-1488.65,0.0003645,31]
[358911219,1745544764026,-773.50853895,0.000365,120]
[358911220,1745544764053,-1488.65,0.0003655,39]
[358911221,1745544764078,-808.84,0.00036615,30]
[358911222,1745544764103,-1488.65,0.0003665,47]
[358911223,1745544764130,-1488.65,0.0003675,47]
[358911224,1745544764155,-1488.65,0.0003685,31]